Cogmind - Beta 13 @@@ ROGUE MODE // 2024.04.04 @ 16:28:16 Player: ebo Result: Destroyed by Y-45 Defender with Beam Rifle Performance ------------- Evolutions (2) 1000 Regions Visited (4) 800 Robots Destroyed (25) 125 Value Destroyed (891) 891 Prototype IDs (0) 0 Alien Tech Used (0) 0 Bonus (0) 0 TOTAL SCORE: 2816 Bonus ------- None Cogmind --------- Core Integrity 0/550 Matter 300/300 Energy 100/100 System Corruption 0% Temperature Cool (9) Movement Core (50) Location -8/Materials Parts ------- > --- POWER (2) -------- (None) > --- PROPULSION (2) --- (None) > --- UTILITY (5) ------ (None) > --- WEAPON (2) ------- (None) > --- INVENTORY (5) ---- Terrain Scanner Core Analyzer Core Analyzer Medium Armor Plating Peak State ------------ > --- POWER ------------ Light Nuclear Core Light Nuclear Core > --- PROPULSION ------- Improved Titanium Leg Improved Titanium Leg > --- UTILITY ---------- Small Storage Unit Medium Storage Unit Structural Scanner Improved Sensor Array Signal Interpreter > --- WEAPON ----------- Light Assault Rifle Shotgun > --- INVENTORY -------- Light Nuclear Core Light Nuclear Core Improved Titanium Leg High-capacity Matter Pod Core Analyzer Core Analyzer Light Armor Plating Medium Armor Plating Makeshift Shrapnel Gun [Rating: 26] Favorites ----------- Power Light Nuclear Core Engine Ion Engine Power Core Light Nuclear Core Propulsion Light Treads Treads Light Treads Leg Aluminum Leg Utility Small Storage Unit Device Terrain Scanner Storage Small Storage Unit Processor Signal Interpreter Protection Utility Shielding Weapon Light Assault Rifle Ballistic Gun Light Assault Rifle Build | -11 -10 -10 -9 -8 ------- Run | Yrd Mat Min Mat Mat Slots Evolved 4 | . . . 2 2 Power 1 | . . . . 1 Propulsion . | . . . . . Utility 3 | . . . 2 1 Weapon . | . . . . . Parts Attached 41 | 6 6 5 6 18 Power 7 | 1 1 1 . 4 Engine 3 | 1 1 1 . . Core 4 | . . . . 4 Reactor . | . . . . . Propulsion 11 | 2 2 . 2 5 Treads 4 | 2 2 . . . Leg 7 | . . . 2 5 Wheel . | . . . . . Hover . | . . . . . Flight . | . . . . . Utility 10 | 1 1 1 3 4 Device 4 | . . . 1 3 Storage 4 | 1 1 1 . 1 Processor 1 | . . . 1 . Hackware . | . . . . . Protection 1 | . . . 1 . Artifact . | . . . . . Weapon 13 | 2 2 3 1 5 Energy Gun . | . . . . . Energy Cannon . | . . . . . Ballistic Gun 13 | 2 2 3 1 5 Ballistic Cannon . | . . . . . Launcher . | . . . . . Special Weapon . | . . . . . Impact Weapon . | . . . . . Slashing Weapon . | . . . . . Piercing Weapon . | . . . . . Special Melee Weapon . | . . . . . Unidentified Prototypes . | . . . . . Parts Lost 23 | . . 3 2 18 Power 6 | . . 1 . 5 Propulsion 6 | . . 1 1 4 Utility 2 | . . . . 2 Weapon 9 | . . 1 1 7 Highest Loss Streak 10 | . . 2 2 10 To Critical Strikes . | . . . . . Average Slot Usage (%) 92 | . 91 86 93 95 Engine 8 | . 13 13 11 1 Core 5 | . . . . 15 Treads 8 | . 26 17 4 . Leg 9 | . . . 12 16 Device 7 | . . . 11 12 Storage 21 | . 23 27 22 17 Processor 3 | . . . . 9 Protection 4 | . . . 11 3 Ballistic Gun 21 | . 26 26 21 17 Naked Turns 3 | . . . . 3 Heaviest Build 33 | 11 16 22 26 33 Greatest Support 40 | 40 40 40 20 40 Greatest Overweight (x) 8 | . 4 1 8 3 Average Overweight (x) . | . . . 1 . Largest Inventory Capacity 10 | 8 8 10 10 10 Average Capacity 9 | 7 8 8 10 9 Most Carried 10 | 3 6 9 10 10 Average Carried 7 | 1 2 7 8 8 Final Capacity 10 | 8 8 10 10 5 Final Carried 10 | 1 5 9 10 4 Class Distribution -------------------- 86% | Mutant 13% | Skirmisher Dominant Class ---------------- Mutant | -10/Materials Mutant | -10/Mines Mutant | -9/Materials Mutant | -8/Materials Resources | -11 -10 -10 -9 -8 ----------- Run | Yrd Mat Min Mat Mat Matter Collected 1044 | 222 91 132 120 479 Remotely . | . . . . . Salvage Created 912 | . 91 116 221 484 Parts 59 | . 5 9 14 31 Haulers Intercepted . | . . . . . Recyclers Shooed 1 | . . . . 1 Parts Field Recycled . | . . . . . Retrieved Matter . | . . . . . Parts Self-Destructed . | . . . . . Prevented . | . . . . . Kills | -11 -10 -10 -9 -8 ------- Run | Yrd Mat Min Mat Mat Combat Hostiles Destroyed 22 | . 2 5 5 10 Guns 22 | . 2 5 5 10 Classes Destroyed 6 | . 1 1 . 4 Builder 1 | . . . . 1 Watcher 2 | . . . . 2 Swarmer 3 | . . 3 . . Grunt 11 | . 2 2 5 2 Sentry 6 | . . . . 6 Hunter 2 | . . . . 2 Best Kill Streak 3 | . 2 3 2 2 Combat Bots Only 3 | . 2 3 2 2 Max Kills in Single Turn 1 | . 1 1 1 1 Gunslinging . | . . . . . Exploded . | . . . . . Melee . | . . . . . Uniques/NPCs Destroyed . | . . . . . Combat | -11 -10 -10 -9 -8 -------- Run | Yrd Mat Min Mat Mat Hostile Shots Fired 288 | . 14 41 30 203 Missed 66 | . 3 8 8 47 Damage Taken 3034 | . 122 345 281 2286 Core 681 | . 12 58 58 553 Absorbed by Shields . | . . . . . Redirected to Shielding 44 | . . . 8 36 Core Remaining (%) 85 | 100 . 72 85 . Volleys Fired 118 | . 8 22 16 72 Largest 2 | . 2 2 2 2 Hottest 47 | . 40 40 43 47 Shots Fired 211 | . 16 32 32 131 Gun 211 | . 16 32 32 131 Cannon . | . . . . . Launcher . | . . . . . Special . | . . . . . Kinetic 211 | . 16 32 32 131 Thermal . | . . . . . Explosive . | . . . . . Electromagnetic . | . . . . . Robot Hit Streak 22 | . 4 6 7 22 Robot Miss Streak 4 | . 2 1 1 4 Penetration Max . | . . . . . Secondary Targets 2 | . 1 . . 1 Max Gunslinging Chain 1 | . 1 . . 1 Shots Hit Robots 155 | . 10 23 25 97 Core Hits 65 | . 4 8 11 42 Critical Kills . | . . . . . Critical Parts Destroyed 1 | . . . . 1 Critical Strikes 1 | . . . . 1 Destroy 1 | . . . . 1 Melee Attacks . | . . . . . Impact . | . . . . . Slashing . | . . . . . Piercing . | . . . . . Sneak Attacks . | . . . . . Combat Hostiles . | . . . . . Follow-up Attacks . | . . . . . Damage Inflicted 2107 | . 126 229 309 1443 Guns 2101 | . 120 229 309 1443 Cannons . | . . . . . Explosions . | . . . . . Melee . | . . . . . Ramming 6 | . 6 . . . Kinetic 2101 | . 120 229 309 1443 Thermal . | . . . . . Explosive . | . . . . . Electromagnetic . | . . . . . Impact . | . . . . . Slashing . | . . . . . Piercing . | . . . . . Highest Corruption . | . . . . . Average Corruption . | . . . . . Corruption Purged . | . . . . . Corruption Blocked . | . . . . . Overload Shots . | . . . . . Overflow Damage . | . . . . . Projectiles . | . . . . . Explosions . | . . . . . Melee . | . . . . . Knockbacks . | . . . . . Impact . | . . . . . Kinetic . | . . . . . Secondary . | . . . . . Self-Inflicted Damage . | . . . . . Shots . | . . . . . Rammed 1 | . 1 . . . Targets Rammed 1 | . 1 . . . Kicked . | . . . . . Crushed . | . . . . . Highest Temperature 69 | . 12 24 25 69 Average Temperature 13 | . 8 11 8 15 Received Heat Transfer 1152 | . 66 105 171 810 Siege Activations . | . . . . . Robots Corrupted . | . . . . . Combat Hostiles . | . . . . . Parts Fried . | . . . . . Impact Corruptions . | . . . . . Robots Melted . | . . . . . Combat Hostiles . | . . . . . Parts Melted . | . . . . . Heat Transferred . | . . . . . Parts Sabotaged . | . . . . . Parts Stolen . | . . . . . Parts Stripped . | . . . . . Power Chain Reactions . | . . . . . Alert | -11 -10 -10 -9 -8 ------- Run | Yrd Mat Min Mat Mat Peak Influence 163 | . 40 120 75 163 Initial 31 | . . 15 . 31 Average 55 | . 16 100 31 70 Maximum Alert Level . | . . . . . Low Security (%) 100 | 100 100 100 100 100 Level 1 . | . . . . . Level 2 . | . . . . . Level 3 . | . . . . . Level 4 . | . . . . . Level 5 . | . . . . . High Security . | . . . . . Max Security . | . . . . . Squads Dispatched 3 | . . . 1 2 Investigation . | . . . . . Extermination . | . . . . . Reinforcement 2 | . . . 1 1 Assault . | . . . . . Garrison 1 | . . . . 1 Intercept . | . . . . . Searches Triggered . | . . . . . Construction Impeded . | . . . . . Haulers Reinforced . | . . . . . Active Scanning Responses . | . . . . . Cargo Convoy Interrupts . | . . . . . Stealth | -11 -10 -10 -9 -8 --------- Run | Yrd Mat Min Mat Mat Distress Signals 5 | . 1 . 1 3 Communications Jammed . | . . . . . Distress Signals . | . . . . . Times Spotted 39 | . 5 6 6 22 Peak Tracking Total 7 | . 3 3 4 7 Tactical Retreats 3 | . . 1 . 2 Traps | -11 -10 -10 -9 -8 ------- Run | Yrd Mat Min Mat Mat Traps Triggered 5 | . 4 . 1 . Indirectly . | . . . . . Trap Hack Attempts . | . . . . . Triggered . | . . . . . Disarmed . | . . . . . Reprogrammed . | . . . . . Reused . | . . . . . Traps Extracted . | . . . . . Installed . | . . . . . Triggered . | . . . . . Machines | -11 -10 -10 -9 -8 ---------- Run | Yrd Mat Min Mat Mat Machines Disabled . | . . . . . Max in Single Turn . | . . . . . Machines Repaired . | . . . . . Machines Dismantled . | . . . . . Machines Sabotaged . | . . . . . Overloaded Fab Kills . | . . . . . Hacking | -11 -10 -10 -9 -8 --------- Run | Yrd Mat Min Mat Mat Machines Accessed 3 | . . . 2 1 Terminals 3 | . . . 2 1 Fabricators . | . . . . . Repair Stations . | . . . . . Recycling Units . | . . . . . Scanalyzers . | . . . . . Garrison Access . | . . . . . Total Hacks 8 | . . . 7 1 Successful 4 | . . . 3 1 Failed 4 | . . . 4 . Catastrophic . | . . . . . Database Lockouts . | . . . . . Manual . | . . . . . Terminals 8 | . . . 7 1 Fabricators . | . . . . . Repair Stations . | . . . . . Recycling Units . | . . . . . Scanalyzers . | . . . . . Garrison Access . | . . . . . Terminal Hacks 4 | . . . 3 1 Record 2 | . . . 2 . Dispatch Records 1 | . . . . 1 Zone Layout 1 | . . . 1 . Fabricator Hacks . | . . . . . Repair Station Hacks . | . . . . . Recycling Unit Hacks . | . . . . . Scanalyzer . | . . . . . Garrison Access Hacks . | . . . . . Unauthorized Hacks . | . . . . . Terminals . | . . . . . Fabricators . | . . . . . Repair Stations . | . . . . . Recycling Units . | . . . . . Scanalyzers . | . . . . . Garrison Access . | . . . . . Data Cores Recovered . | . . . . . Used . | . . . . . Hacking Detections 2 | . . . 2 . Full Trace Events . | . . . . . Feedback Events . | . . . . . Feedback Blocked . | . . . . . Robot Schematics Acquired . | . . . . . Robots Built . | . . . . . Authchips . | . . . . . Time . | . . . . . Total Robot Build Rating . | . . . . . Part Schematics Acquired . | . . . . . Parts Built . | . . . . . Authchips . | . . . . . Time . | . . . . . Total Part Build Rating . | . . . . . Parts Repaired . | . . . . . Time . | . . . . . Parts Recycled . | . . . . . Recycled Matter . | . . . . . Retrieved Matter . | . . . . . Retrieved Components . | . . . . . Parts Scanalyzed . | . . . . . Part Schematics Acquired . | . . . . . Parts Damaged . | . . . . . Bothacking | -11 -10 -10 -9 -8 ------------ Run | Yrd Mat Min Mat Mat Used RIF Installer . | . . . . . Robots Hacked . | . . . . . Non-combat . | . . . . . Combat . | . . . . . Robot Hacks Applied . | . . . . . Relay Couplers Released . | . . . . . Fabnet Peak Effective % . | . . . . . Robots Rewired . | . . . . . Allies Hacked . | . . . . . Hacks Repelled . | . . . . . Allies | -11 -10 -10 -9 -8 -------- Run | Yrd Mat Min Mat Mat Total Allies . | . . . . . Largest Group . | . . . . . Highest-Rated Group . | . . . . . Highest-Rated Ally . | . . . . . Total Orders . | . . . . . Ally Attacks . | . . . . . Total Damage . | . . . . . Kills . | . . . . . Allies Corrupted . | . . . . . Allies Melted . | . . . . . Intel | -11 -10 -10 -9 -8 ------- Run | Yrd Mat Min Mat Mat Robot Analysis Total . | . . . . . Derelict Logs Recovered 2 | . . 2 . . Drone Launches . | . . . . . Drone Recoveries . | . . . . . Exploration | -11 -10 -10 -9 -8 ------------- Run | Yrd Mat Min Mat Mat Turns Passed 2112 | 75 305 406 538 788 Spaces Moved 964 | 39 163 204 225 333 Core 16 | 7 7 . 2 . Treads 471 | 32 156 204 79 . Legs 477 | . . . 144 333 Wheels . | . . . . . Hover . | . . . . . Flight . | . . . . . Fastest Speed 50 | 50 160 160 190 130 Average Speed 170 | 140 162 167 209 152 Slowest Speed 450 | 160 250 240 450 330 Overloaded Moves . | . . . . . Propulsion Burnouts . | . . . . . Robots Hopped . | . . . . . Cave-ins Triggered . | . . . . . Exploration Rate (%) 29 | 3 31 58 27 27 Regions Visited 4 Branch Regions 1 Pre-discovered Areas . | . . . . . Known Exits Taken 1 | . . . 1 . Unknown Exits Taken 3 | 1 1 1 . . Scrap Searched 1 | . . 1 . . Spaces Dug . | . . . . . Terrain Destroyed . | . . . . . Melee . | . . . . . Projectile . | . . . . . AOE . | . . . . . Terrain Rammed . | . . . . . Walls Destroyed . | . . . . . Machines Disabled . | . . . . . Actions | -11 -10 -10 -9 -8 --------- Run | Yrd Mat Min Mat Mat Total 1259 | 59 189 243 268 500 Wait 64 | 8 . . 4 52 Move 960 | 38 162 203 224 333 Hop . | . . . . . Pick Up 53 | 7 11 9 12 14 Fast Attach . | . . . . . Attach 37 | 6 6 4 5 16 Detach 1 | . . 1 . . Swap 4 | . . 1 1 2 Drop 21 | . 1 3 6 11 Fire 118 | . 8 22 16 72 Melee . | . . . . . Ram . | . . . . . Kick . | . . . . . Crush 1 | . 1 . . . Escape Stasis . | . . . . . Rewire . | . . . . . Trap . | . . . . . Miscellaneous . | . . . . . Route ------- -11/Scrapyard -10/Materials -10/Mines -9/Materials -8/Materials History --------- Turn | Location | Event 6 | -11/Scrapyard | Discovered new exit (range 15) 76 | -11/Scrapyard | Entered Materials 290 | -10/Materials | Discovered new exit (range 11) 310 | -10/Materials | Build established: Mutant 381 | -10/Materials | Entered Mines 389 | -10/Mines | Met a Derelict bent on vengeance 598 | -10/Mines | Learned Materials emergency access door positions 708 | -10/Mines | Learned Materials emergency access door positions 713 | -10/Mines | A weapon hastily lodged in a ceiling crevice suddenly fell to the ground 765 | -10/Mines | Discovered new exit (range 8) 787 | -10/Mines | Entered Materials 787 | -9/Materials | Evolved 2 slots: Utility x2 1285 | -9/Materials | Discovered new exit (range 13) 1324 | -9/Materials | Identified exit to Materials 1325 | -9/Materials | Entered another Materials area 1325 | -8/Materials | Evolved 2 slots: Power x1, Utility x1 1521 | -8/Materials | Lost 6 parts (1p2n3w) 2071 | -8/Materials | Garrison activated, responded to threat 2091 | -8/Materials | Core integrity fell below 50% 2111 | -8/Materials | Core integrity fell below 20% 2113 | -8/Materials | Destroyed by Y-45 Defender with Beam Rifle Last Messages --------------- Lgt. Assault Rifle destroyed. G-47 Trooper calls for garrison reinforcements. ALERT: Activating Garrison Access M001. G-47 Trooper destroyed. Mak. Shrapnel Gun destroyed. Penetrated by Slug. Imp. Titanium Leg destroyed. Slug penetrates Wall. Hvy. Assault Rifle destroyed. Slug penetrates Wall. Critical hit (Burn: +37). Penetrated by Slug. Dropped Sml. Storage Unit. Dropped Hcp. Matter Pod. Dropped Med. Storage Unit. Dropped Structural Scanner. Dropped Imp. Titanium Leg. Lgt. Nuclear Core destroyed. Discarded Signal Interpreter. Penetrated by Slug. Map ----- +----------------------------------------------------+ | ?????????????????????????????+???????????????????? | | ?????????????????????????????????????????????????? | | ?????????????????????????????????????????????????? | | ?????????????????????????????????????????????????? | | ?????????????????????????????????????????????????? | | ?????????????????????????????????????????????????? | | ?????????????????????????????????????????????????? | | ?????????????????????????????????????????????????? | | ?????????????????????????????+???????????????????? | | ?????????????????????????????????????????????????? | | ?????????????????????????????????????????????????? | | ?????????????????????????????????????????????????? | | ??????????????????????????????? T????????????????? | | ?????????????????????????????? ?????????????????? | | ????????????????????# ##??????????????? | | ## ????????????????????####+####??????????????? | | ## ????????????????????# ??????????????? | | ## ???????????????????## ?????????????????? | | ## ???????????????????## o ?????????????????? | | ## ???????????????????## ^ ##?????????????????? | | ## ##?????????????????## ##?????????????????? | | ## ##### ### h ##?????????????????? | | ## ##################### # ?????????????????? | | ## # ?????????????????? | | ## k t !g # ?????????????????? | | ### a Y !@g # ?????????????????? | | ### ############ ####### # ?????????????????? | | ### ############ ## #### # ?????????????????? | | ### #########?## ##???## # ?????????????????? | | ### ## ######?## # ??? # ##?????????????????? | | ### # ##?## # ??? # % ?????????????????? | | ### # T ##### # ??? # ????????????????? | | ### #!![ ##### # ??? # ?????????????? | | ### =/!!!! + # ??? ### ######?????????????? | | ### # !![ ##### # ??? ### # ?????????????? | | ### [%#=!! ##### # ??????? # ?????????????????? | | ### #########?## # ??????? # ?????????????????? | | #########?## # ??????? # ?????????????????? | | ##????????## # ??????? # ?????????????????? | | ##????????## # ??????? # ?????????????????? | | ##+#####????????## # ???????????????????????????? | | ????????## ##???????????????????????????? | | ??? ???????????## ???????????????????????????? | | ???????????????## ##???????????????????????????? | | ??"??"??????????## ##???????????????????????????? | | ? ??????????????## # ???????????????????????????? | | ?? ??? ????????? # ???????????????????????????? | | #######???##??#??? ?????????????????????????????? | | ###???? ????? ?????????????????????????????? | | ##?#?????? ?????????????????????????????????? | +----------------------------------------------------+ Best States ------------- Heat Dissipation 31 Energy Generation 23 Energy Capacity 310 Matter Stores 300 Matter Capacity 500 Sight Range 16 Robot Scan Range 15 Terrain Scan Range 14 Terrain Scan Density 10 Utility Shielding 33 Evasion (%) 55 Recoil Reduction 2 Item Schematics ----------------- None Robot Schematics ------------------ None Fabricated ------------ Nothing Alien Tech Used ----------------- None Achievements -------------- None Challenges ------------ None Game ------ Seed IntegratedCatalystLauncher Manual? 0 Play Time 00:17:51 Cumulative 4.8 hours Start 2024.04.04 @ 16:11:06 End 2024.04.04 @ 16:28:16 Sessions 1 Manual Loads 0 Difficulty Rogue Special Mode None Game No. 10 Rogue 10 Adventurer 0 Explorer 0 Win Type - Total 0 Types 0/0/0/0/0/0/0/0/0 Lore% 4 Gallery% 12 Achievement% 10 Wizard Run 0 Options --------- Layout 1 ASCII 0 Keyboard 0 Movement Mouse Keybinds 0 Fullscreen 1 Font 24/Smallcaps Map View 50x35 Zoom Use 0% Tactical HUD 0 Map Filters NONE Filters NONE Steam 1 RUN: 6e59e8dd-3dac-4621-8040-e18547809402